bitfinex/quotes_SOLUSD_20250107
["timestamp","ask_amount","ask_price","bid_price","bid_amount"]
[1736275421273,0.12549,204.4,204.31,15.91803864]
[1736275421472,0.12549,204.4,204.31,1.5743]
[1736275421973,0.12549,204.4,204.31,25.351184]
[1736275422452,0.12549,204.4,204.31,39.69492264]
[1736275422652,0.12549,204.4,204.31,25.351184]
[1736275423153,0.12549,204.38,204.31,1.5743]
[1736275423363,0.12549,204.38,204.3,38.25288331]
[1736275436504,0.12549,204.33,204.3,38.25288331]
[1736275438711,0.85556292,204.33,204.3,38.25288331]
[1736275443095,0.12549,204.33,204.3,38.25288331]
[1736275446127,20.0,204.39,204.3,38.25288331]
[1736275446433,0.73007292,204.4,204.3,38.25288331]
[1736275446601,8.6568,204.42,204.31,23.776884]
[1736275446602,0.73007292,204.42,204.31,23.776884]
[1736275446942,0.12549,204.41,204.31,23.776884]
[1736275447093,20.12549,204.41,204.31,23.776884]
[1736275447492,0.12549,204.41,204.31,23.776884]
[1736275448089,20.12549,204.41,204.31,23.776884]
[1736275448539,20.12549,204.41,204.31,38.12062264]
[1736275448727,0.12549,204.41,204.33,38.12062264]
[1736275448921,0.12549,204.41,204.34,1.5786]
[1736275449444,0.73007292,204.48,204.35,38.12062264]
[1736275449745,0.73007292,204.48,204.36,14.34373864]
[1736275449746,2.68842692,204.48,204.36,14.34373864]
[1736275449945,2.68842692,204.48,204.37,23.776884]
[1736275450419,0.73007292,204.48,204.37,23.776884]
[1736275450623,0.12549,204.47,204.37,23.776884]
[1736275450815,0.12549,204.48,204.35,23.776884]
[1736275451014,0.12549,204.48,204.35,38.12062264]
[1736275451522,0.12549,204.45,204.37,38.12062264]
[1736275451724,0.12549,204.45,204.39,23.776884]
[1736275452044,10.409193,204.51,204.39,23.776884]
[1736275452242,0.12549,204.49,204.39,23.776884]
[1736275452540,10.409193,204.52,204.46,14.34373864]
[1736275452753,7.48919296,204.55,204.46,14.34373864]
[1736275452923,7.48919296,204.55,204.48,23.776884]
[1736275453241,0.73007292,204.58,204.47,23.776884]
[1736275453441,20.0,204.58,204.47,23.776884]
[1736275453613,0.73007292,204.6,204.47,23.776884]
[1736275453813,0.12549,204.59,204.45,38.12062264]
[1736275454125,0.12549,204.59,204.47,23.776884]
[1736275455241,0.12549,204.59,204.47,38.12062264]
[1736275455546,0.12549,204.59,204.47,14.34373864]
[1736275455849,0.73007292,204.61,204.49,23.776884]
[1736275456044,0.12549,204.6,204.51,23.776884]
[1736275456439,0.73007292,204.62,204.53,23.776884]
[1736275456643,0.73007292,204.63,204.53,23.776884]
[1736275456934,0.12549,204.62,204.53,23.776884]
[1736275457533,37.44596483,204.67,204.55,23.776884]
[1736275457733,20.0,204.64,204.52,9.443]
[1736275457954,0.85556292,204.63,204.53,23.776884]
[1736275458254,0.12549,204.63,204.53,23.776884]
[1736275458544,0.12549,204.65,204.53,23.776884]
[1736275459058,0.12549,204.64,204.53,23.776884]
[1736275459488,20.73007292,204.63,204.44,1.6385]
[1736275459749,20.73007292,204.63,204.47,23.776884]
[1736275460137,0.12549,204.62,204.47,14.34373864]
[1736275460745,0.12549,204.62,204.48,23.776884]
[1736275460931,0.12549,204.62,204.47,38.12062264]
[1736275461964,0.12549,204.62,204.47,23.776884]
[1736275463161,0.12549,204.62,204.47,38.12062264]
[1736275463376,0.73007292,204.64,204.5,14.34373864]
[1736275463553,0.73007292,204.64,204.52,23.776884]
[1736275463967,3.57007292,204.65,204.54,14.34373864]
[1736275464169,0.12549,204.64,204.56,23.776884]
[1736275464878,0.73007292,204.68,204.56,23.776884]
[1736275465088,0.73007292,204.69,204.58,14.34373864]
[1736275465248,5.7368,204.7,204.58,14.34373864]
[1736275465249,6.46687292,204.7,204.58,14.34373864]
[1736275465583,20.0,204.67,204.58,14.34373864]
[1736275465783,2.84,204.74,204.6,23.776884]
[1736275465947,0.73007292,204.73,204.6,38.12062264]
[1736275466149,0.12549,204.72,204.6,38.12062264]
[1736275466383,0.12549,204.7,204.6,38.12062264]
[1736275466554,0.12549,204.7,204.62,23.776884]
[1736275467159,0.12549,204.71,204.62,23.776884]
[1736275467376,0.12549,204.71,204.62,14.34373864]
[1736275467571,0.12549,204.71,204.62,38.12062264]
[1736275467750,1.96930153,204.77,204.65,23.776884]
[1736275468089,0.73007292,204.78,204.65,39.73602264]
[1736275468259,0.73007292,204.78,204.67,23.776884]
[1736275468260,0.12549,204.77,204.67,23.776884]
[1736275468577,0.73007292,204.79,204.67,23.776884]
[1736275468783,0.12549,204.78,204.68,14.34373864]
[1736275468948,0.73007292,204.83,204.71,38.12062264]
[1736275469147,20.0,204.82,204.71,23.776884]
[1736275469591,0.12549,204.87,204.71,23.776884]
[1736275469791,0.12549,204.87,204.71,14.34373864]
[1736275470581,20.0,204.86,204.73,23.776884]
[1736275470796,0.12549,204.84,204.73,38.12062264]
[1736275470960,0.12549,204.84,204.74,14.34373864]
[1736275471385,0.73007292,204.88,204.75,23.776884]
[1736275471556,0.12549,204.85,204.75,23.776884]
[1736275471758,0.12549,204.85,204.73,14.34373864]
[1736275472061,0.12549,204.85,204.75,23.776884]
[1736275472362,5.0,204.95,204.75,23.776884]
[1736275472363,5.7368,204.96,204.85,23.776884]
[1736275472578,20.0,204.98,204.89,14.34373864]
[1736275472772,0.73007292,204.99,204.89,14.34373864]
[1736275473091,0.73007292,205.0,204.89,14.34373864]
[1736275473392,6.46687292,205.01,204.9,38.85243928]
[1736275473685,8.5768,205.06,204.92,23.776884]
[1736275473991,0.73007292,205.05,204.92,23.776884]
[1736275474168,0.73007292,205.05,204.92,22.8765819]
[1736275474374,0.73007292,205.08,204.94,23.776884]
[1736275474888,0.12549,205.01,204.93,46.6534659]
[1736275475188,20.0,205.02,204.9,22.8765819]
[1736275475390,0.12549,205.0,204.9,2.84]
[1736275475570,0.12549,205.0,204.9,25.7165819]
[1736275475777,0.12549,205.0,204.93,23.776884]
[1736275475964,7.65856434,205.1,204.93,22.8765819]
[1736275476155,0.73007292,205.09,204.93,22.8765819]
[1736275476358,19.528408,205.06,204.93,23.776884]
[1736275476559,0.12549,205.02,204.93,23.776884]
[1736275477298,0.12549,205.02,204.93,22.8765819]
[1736275477461,0.12549,205.02,204.94,22.8765819]
[1736275477664,0.12549,205.02,204.95,23.776884]
[1736275477967,0.12549,205.04,204.95,22.8765819]
[1736275478387,39.527922,205.07,204.96,22.8765819]
[1736275478593,6.46687292,205.1,204.95,22.8765819]
[1736275478767,0.12549,205.07,204.95,22.8765819]
[1736275478966,0.85556292,205.07,204.95,22.8765819]
[1736275479195,0.12549,205.04,204.97,23.776884]
[1736275480098,5.7368,205.1,204.96,23.776884]
[1736275480308,0.12549,205.08,204.97,22.8765819]
[1736275480792,0.73007292,205.13,205.01,23.776884]
[1736275480973,20.0,205.12,205.01,22.8765819]
[1736275481500,0.73007292,205.13,205.01,22.8765819]
[1736275481699,0.12549,205.11,205.01,22.8765819]
[1736275481874,0.12549,205.11,205.02,22.8765819]
[1736275482072,0.12549,205.11,205.03,23.776884]
[1736275482400,20.0,205.12,204.99,1.6444]
[1736275482574,0.12549,205.1,204.99,1.6444]
[1736275483008,0.12549,205.07,204.92,1.6444]
[1736275483176,0.12549,205.05,204.92,1.6444]
[1736275483378,0.85556292,205.05,204.92,1.6444]
[1736275484069,0.12549,205.01,204.92,1.6444]
[1736275484269,0.12549,205.01,204.92,24.5209819]
[1736275484678,0.12549,205.07,204.93,23.776884]
[1736275484884,0.85556292,205.07,204.93,23.776884]
[1736275485082,0.12549,205.05,204.93,23.776884]
[1736275485282,0.85556292,205.05,204.92,1.6444]
[1736275485480,0.12549,205.02,204.92,1.6444]
[1736275485917,0.85556292,205.02,204.93,23.776884]
[1736275486120,0.12549,205.02,204.93,23.776884]
[1736275486498,20.73007292,205.01,204.9,6.4554]
[1736275486689,0.12549,205.0,204.9,6.4554]
[1736275487610,5.7368,205.1,204.98,22.8765819]
[1736275487782,0.73007292,205.15,205.05,22.8765819]
[1736275487990,19.520291,205.16,205.06,46.6534659]
[1736275488301,5.7368,205.19,205.08,22.8765819]
[1736275488610,20.0,205.16,205.08,22.8765819]
[1736275488787,0.12549,205.15,205.08,23.776884]
[1736275488987,5.7368,205.19,205.08,23.776884]
[1736275489198,6.46687292,205.24,205.1,22.8765819]
[1736275489386,20.0,205.21,205.12,23.776884]
[1736275489785,20.0,205.21,205.11,23.776884]
[1736275489981,0.73007292,205.23,205.11,22.8765819]
[1736275490292,0.12549,205.29,205.14,23.776884]
[1736275490507,0.73007292,205.28,205.12,22.8765819]
[1736275490812,20.23878292,205.28,205.13,46.6534659]
[1736275490983,0.12549,205.24,205.12,22.8765819]
[1736275491180,0.12549,205.24,205.07,312.0]
[1736275491181,0.85556292,205.24,205.07,22.8765819]
[1736275491413,20.85556292,205.24,205.06,2.8]
[1736275491599,20.85556292,205.24,205.07,23.776884]
[1736275491791,23.65556292,205.24,205.07,23.776884]
[1736275492715,20.12549,205.18,204.98,2.8]
[1736275492898,0.12549,205.12,204.98,2.8]
[1736275493098,3.65556292,205.12,204.96,6.1964]
[1736275493509,23.65556292,205.12,204.96,6.1964]
[1736275493686,23.65556292,205.12,204.92,27.3377819]
[1736275493900,23.65556292,205.12,204.92,4.4612]
[1736275494104,0.12549,205.07,204.92,1.6612]
[1736275494308,0.85556292,205.07,204.93,23.776884]
[1736275494535,0.85556292,205.07,204.95,22.8765819]
[1736275494811,0.73007292,205.11,204.95,23.776884]
[1736275495202,0.12549,205.1,204.95,23.776884]
[1736275495525,0.12549,205.1,204.95,22.8765819]
[1736275495819,0.12549,205.1,204.97,22.8765819]
[1736275496026,0.12549,205.1,204.98,22.8765819]
[1736275496207,3.53007292,205.12,205.0,23.776884]
[1736275496396,0.12549,205.11,205.0,23.776884]
[1736275496895,0.12549,205.11,205.0,22.8765819]
[1736275497219,0.12549,205.11,205.03,23.776884]
[1736275497424,0.73007292,205.15,205.03,46.6534659]
[1736275497603,0.73007292,205.17,205.08,23.776884]
[1736275497931,0.73007292,205.2,205.1,23.776884]
[1736275498318,0.73007292,205.2,205.08,22.8765819]
[1736275498503,0.12549,205.19,205.08,22.8765819]
[1736275499088,0.12549,205.17,205.04,22.8765819]
[1736275499294,0.85556292,205.17,205.04,22.8765819]
[1736275499494,5.7368,205.32,205.16,22.8765819]
[1736275499804,6.46687292,205.32,205.2,22.8765819]
[1736275500017,19.504106,205.33,205.21,23.776884]
[1736275500188,0.12549,205.31,205.19,22.8765819]
[1736275500388,0.73007292,205.32,205.23,23.776884]
[1736275500587,23.902374,205.33,205.13,22.8765819]
[1736275500831,53.40648,205.31,205.08,22.8765819]
[1736275501034,0.12549,205.23,205.08,0.73110265]
[1736275501236,0.85556292,205.23,205.08,0.73110265]
[1736275501419,0.85556292,205.23,205.11,22.8765819]
[1736275501835,0.85556292,205.23,205.13,23.776884]
[1736275502210,0.85556292,205.23,205.1,0.73102096]
[1736275502211,0.85556292,205.25,205.11,23.776884]
[1736275502408,0.12549,205.2,205.05,7.8317]
[1736275502630,20.85556292,205.2,205.05,1.5773]
[1736275502825,25.85556292,205.2,205.0,22.8765819]
[1736275503107,20.12549,205.15,204.96,1.5831]
[1736275503309,20.0,205.11,204.85,136.3]
[1736275503541,3.81007292,205.1,204.95,22.8765819]
[1736275503708,3.08,205.14,204.98,23.776884]
[1736275503910,0.12549,205.12,204.97,22.8765819]
[1736275504329,0.12549,205.12,204.97,23.776884]
[1736275504550,0.73007292,205.11,204.94,22.8765819]
[1736275504832,0.12549,205.1,204.92,22.8765819]
[1736275505146,0.12549,205.06,204.91,22.8765819]
[1736275505344,20.85556292,205.06,204.87,22.8765819]
[1736275505644,0.12549,205.04,204.86,22.8765819]
[1736275505825,0.85556292,205.04,204.86,22.8765819]
[1736275506946,0.12549,204.99,204.82,1.5831]
[1736275507149,0.85556292,204.99,204.82,1.5831]
[1736275507450,0.85556292,204.99,204.86,37.20639039]
[1736275507948,0.85556292,204.99,204.84,37.20639039]
[1736275508245,0.85556292,205.01,204.84,37.20639039]
[1736275508423,0.85556292,205.01,204.86,37.20639039]
[1736275508623,0.85556292,205.01,204.87,37.20639039]
[1736275508826,0.85556292,205.01,204.87,23.776884]
[1736275509241,0.85556292,205.01,204.86,23.776884]
[1736275509413,0.12549,204.99,204.78,37.20639039]
[1736275509617,0.12549,204.99,204.77,40.28639039]
[1736275509618,0.12549,204.96,204.77,40.28639039]
[1736275509838,3.93556292,204.96,204.77,40.28639039]
[1736275510340,3.93556292,204.96,204.78,37.20639039]
[1736275511143,0.85556292,204.96,204.84,37.20639039]
[1736275511334,3.81007292,204.98,204.88,23.776884]
[1736275511648,20.0,205.02,204.89,23.776884]
[1736275511815,0.12549,205.0,204.87,23.776884]
[1736275512011,0.12549,205.0,204.85,37.20639039]
[1736275512432,0.12549,205.0,204.86,23.776884]
[1736275512636,0.12549,204.98,204.78,37.20639039]
[1736275512952,0.12549,204.94,204.77,40.28639039]
[1736275513125,0.85556292,204.94,204.77,40.28639039]
[1736275513447,0.85556292,204.94,204.78,37.20639039]
[1736275513848,0.85556292,204.94,204.79,23.776884]
[1736275514047,0.85556292,204.94,204.8,37.20639039]
[1736275514419,0.85556292,204.94,204.75,40.28639039]
[1736275514620,0.12549,204.92,204.75,3.08]
[1736275514921,0.12549,204.89,204.72,45.12099039]
[1736275515117,0.12549,204.87,204.72,1.6186]
[1736275515316,0.12549,204.83,204.72,1.6186]
[1736275515512,0.85556292,204.83,204.73,23.776884]
[1736275515962,0.73007292,204.85,204.73,23.776884]
[1736275516341,0.12549,204.84,204.72,1.6186]
[1736275516659,0.73007292,204.83,204.65,43.22489039]
[1736275516954,0.12549,204.82,204.66,37.20639039]
[1736275517155,0.12549,204.82,204.65,43.22489039]
[1736275517321,0.73007292,204.83,204.64,37.20639039]
[1736275517525,0.73007292,204.83,204.65,37.20639039]
[1736275518124,0.12549,204.82,204.69,60.98327439]
[1736275518323,0.12549,204.82,204.69,23.776884]
[1736275518521,0.12549,204.84,204.69,23.776884]
[1736275518929,0.12549,204.84,204.68,23.776884]
[1736275519585,0.12549,204.84,204.7,23.776884]
[1736275519752,0.12549,204.84,204.74,23.776884]
[1736275519934,0.73007292,204.87,204.76,23.776884]
[1736275520257,0.12549,204.86,204.75,23.776884]
[1736275520430,0.12549,204.84,204.73,23.776884]
[1736275520635,0.85556292,204.84,204.73,23.776884]
[1736275521369,0.12549,204.84,204.73,23.776884]
[1736275521541,0.73007292,204.98,204.83,60.98327439]
[1736275521734,0.73007292,204.98,204.85,23.776884]
[1736275521934,0.12549,204.94,204.79,40.28639039]
[1736275522132,0.85556292,204.94,204.79,3.08]
[1736275522347,0.85556292,204.94,204.8,23.776884]
[1736275523020,10.0,205.0,204.82,23.776884]
[1736275523021,27.71244692,204.99,204.82,23.776884]
[1736275523227,3.93556292,204.99,204.84,60.98327439]
[1736275523625,3.93556292,204.99,204.84,23.776884]
[1736275523626,5.0,204.98,204.84,23.776884]
[1736275523867,0.12549,204.96,204.84,23.776884]
[1736275524658,0.12549,204.96,204.85,23.776884]
[1736275524863,5.0,204.98,204.87,60.98327439]
[1736275525068,0.73007292,205.04,204.89,60.98327439]
[1736275525365,13.577358,205.03,204.91,23.776884]
[1736275525564,0.85556292,205.02,204.91,23.776884]
[1736275526250,0.73007292,205.02,204.9,23.776884]
[1736275526449,0.12549,205.01,204.89,23.776884]
[1736275526965,0.12549,204.99,204.85,37.20639039]
[1736275527169,0.85556292,204.99,204.82,3.08]
[1736275527758,0.85556292,204.99,204.83,23.776884]
[1736275528273,0.85556292,204.99,204.78,2.32240025]
[1736275528274,0.12549,204.95,204.78,38.79679039]
[1736275528442,0.85556292,204.95,204.79,37.20639039]
[1736275528634,0.85556292,204.95,204.8,23.776884]
[1736275529336,0.85556292,204.95,204.81,23.776884]
[1736275529869,0.85556292,204.95,204.79,23.776884]
[1736275530240,0.85556292,204.95,204.79,60.98327439]
[1736275530733,6.59236292,204.95,204.78,1.5904]
[1736275530934,0.12549,204.9,204.73,37.20639039]
[1736275531136,0.12549,204.9,204.83,37.20639039]
[1736275531451,20.0,204.92,204.84,23.776884]
[1736275531756,0.12549,204.91,204.81,23.776884]
[1736275531958,3.08,204.97,204.81,23.776884]
[1736275531959,19.73496827,205.15,204.9,37.20639039]
[1736275532164,0.73007292,205.06,204.93,37.20639039]
[1736275532460,7.44053964,205.08,204.98,23.776884]
[1736275532664,0.12549,205.07,204.99,3.08]
[1736275532838,0.12549,205.04,205.0,23.776884]
[1736275533039,20.0,205.05,205.0,23.776884]
[1736275533471,0.73007292,205.15,205.03,23.776884]
[1736275534373,0.73007292,205.15,205.04,23.776884]
[1736275534588,0.73007292,205.15,205.06,23.776884]
[1736275534740,0.73007292,205.22,205.06,23.776884]
[1736275534941,0.12549,205.19,205.06,23.776884]
[1736275535150,0.85556292,205.19,205.06,23.776884]
[1736275535352,0.85556292,205.19,205.05,23.776884]
[1736275535566,20.85556292,205.19,205.02,3.08]
[1736275535745,20.85556292,205.19,205.03,23.776884]
[1736275536057,20.85556292,205.19,205.05,30.0]
[1736275536058,0.12549,205.14,205.05,30.0]
[1736275536261,0.85556292,205.14,205.05,30.0]
[1736275536442,0.85556292,205.14,205.0,23.776884]
[1736275536643,0.85556292,205.14,204.98,3.08]
[1736275537073,0.85556292,205.14,204.99,23.776884]
[1736275537442,0.85556292,205.14,204.99,60.98327439]
[1736275537639,0.85556292,205.14,204.99,23.776884]
[1736275537840,20.0,205.13,204.97,3.08]
[1736275538156,0.73007292,205.12,204.96,37.20639039]
[1736275538374,0.12549,205.11,204.97,60.98327439]
[1736275538903,0.12549,205.11,204.99,23.776884]
[1736275539075,0.73007292,205.13,205.02,23.776884]
[1736275539259,0.73007292,205.13,205.02,60.98327439]
[1736275539988,0.85556292,205.16,205.02,23.776884]
[1736275540185,0.85556292,205.16,204.97,37.20639039]
[1736275540389,0.12549,205.11,204.96,37.20639039]
[1736275540573,0.85556292,205.11,204.97,23.776884]
[1736275540771,0.85556292,205.11,204.97,60.98327439]
[1736275540976,0.85556292,205.11,205.0,23.776884]
[1736275541184,0.12549,205.14,204.99,37.20639039]
[1736275541370,0.12549,205.12,204.98,37.20639039]
[1736275541568,0.12549,205.12,205.0,23.776884]
[1736275541891,0.12549,205.12,205.0,37.20639039]
[1736275542275,0.85556292,205.14,205.0,37.20639039]
[1736275543088,20.0,205.1,204.97,37.20639039]
[1736275543278,0.85556292,205.09,204.95,37.20639039]
[1736275543591,0.85556292,205.09,204.96,23.776884]
[1736275544192,0.85556292,205.09,204.88,0.12549]
[1736275544193,0.12549,205.04,204.84,142.8431]
[1736275544379,0.85556292,205.04,204.9,37.20639039]
[1736275544594,0.85556292,205.04,204.91,37.20639039]
[1736275544976,0.85556292,205.04,204.94,37.20639039]
[1736275545390,0.85556292,205.04,204.95,23.776884]
[1736275545573,0.85556292,205.04,204.95,60.98327439]
[1736275545979,0.85556292,205.04,204.95,23.776884]
[1736275546488,0.12549,205.04,204.97,37.20639039]
[1736275548082,0.12549,205.04,204.99,37.20639039]
[1736275548298,0.12549,205.04,205.0,23.776884]
[1736275548495,0.12549,205.04,204.91,151.73157805]
[1736275548496,3.08,205.1,205.02,23.776884]
[1736275548791,0.85556292,205.09,205.0,37.20639039]
[1736275548997,0.85556292,205.09,204.99,37.20639039]
[1736275549195,0.85556292,205.09,205.0,60.98327439]
[1736275549381,0.12549,205.1,205.02,37.20639039]
[1736275549612,0.12549,205.1,205.03,37.20639039]
[1736275549785,0.73007292,205.13,205.03,37.20639039]
[1736275550098,0.12549,205.12,205.03,37.20639039]
[1736275550406,0.12549,205.12,205.02,37.20639039]
[1736275550706,0.12549,205.12,204.96,23.776884]
[1736275550707,0.12549,205.1,204.96,37.20639039]
[1736275550871,0.85556292,205.1,204.94,40.28639039]
[1736275551302,0.85556292,205.1,204.94,3.08]
[1736275551473,0.85556292,205.1,204.94,40.28639039]
[1736275551911,0.85556292,205.1,204.95,23.776884]
[1736275553007,0.85556292,205.1,204.97,23.776884]
[1736275553606,0.73007292,205.11,205.02,37.20639039]
[1736275553800,0.12549,205.1,205.02,37.20639039]
[1736275554702,0.12549,205.1,204.94,3.08]
[1736275554703,0.12549,205.1,205.01,23.776884]
[1736275554909,0.85556292,205.13,204.99,23.776884]
[1736275555275,0.12549,205.1,204.99,23.776884]
[1736275555569,0.85556292,205.1,204.97,37.20639039]
[1736275555801,0.85556292,205.1,204.99,37.20639039]
[1736275556100,0.12549,205.1,205.03,60.98327439]
[1736275556310,0.73007292,205.13,205.03,23.776884]
[1736275556604,0.12549,205.1,205.03,23.776884]
[1736275558301,0.12549,205.1,205.02,23.776884]
[1736275559710,0.85556292,205.1,204.97,37.20639039]
[1736275559887,0.85556292,205.1,204.94,3.08]
[1736275560076,3.83556292,205.1,204.94,3.08]
[1736275560406,23.83556292,205.1,204.91,37.20639039]
[1736275560580,23.83556292,205.1,204.88,1.5739]
[1736275560581,23.83556292,205.1,204.93,23.776884]
[1736275560975,23.83556292,205.1,204.92,23.776884]
[1736275561290,3.83556292,205.1,204.95,60.98327439]
[1736275561917,3.83556292,205.1,204.95,23.776884]
[1736275562093,3.83556292,205.1,204.91,60.98327439]
[1736275562406,3.83556292,205.1,204.93,23.776884]
[1736275562603,0.12549,205.05,204.93,23.776884]
[1736275562910,0.85556292,205.05,204.9,23.776884]
[1736275563211,0.85556292,205.05,204.9,60.98327439]
[1736275563419,0.85556292,205.05,204.89,37.20639039]
[1736275563703,0.12549,205.0,204.84,4.886]
[1736275563908,0.12549,205.0,204.83,42.09239039]
[1736275563909,0.85556292,205.0,204.83,42.09239039]
[1736275564083,0.85556292,205.0,204.83,4.886]
[1736275564418,20.85556292,205.0,204.83,4.886]
[1736275564586,20.85556292,205.0,204.82,4.5609]
[1736275564784,0.12549,204.98,204.82,2.98]
[1736275564993,0.85556292,204.98,204.83,23.776884]
[1736275565199,0.85556292,204.98,204.82,2.98]
[1736275565492,0.85556292,204.98,204.83,23.776884]
[1736275565821,0.85556292,204.98,204.86,23.776884]
[1736275566111,0.12549,204.97,204.85,23.776884]
[1736275566492,0.12549,204.98,204.86,23.776884]
[1736275566812,0.12549,204.98,204.86,60.98327439]
[1736275567122,0.12549,204.98,204.89,37.20639039]
[1736275567482,0.12549,205.0,204.89,36.70639039]
[1736275567799,0.12549,204.98,204.9,60.98327439]
[1736275567986,0.12549,204.98,204.9,23.776884]
[1736275568190,0.12549,204.99,204.9,37.20639039]
[1736275568422,87.3,205.09,204.82,3.71206991]
[1736275568423,0.73007292,205.08,204.94,23.776884]
[1736275568631,0.73007292,205.08,204.95,60.98327439]
[1736275568632,3.71007292,205.08,204.95,60.98327439]
[1736275568921,0.12549,205.03,204.97,37.20639039]
[1736275569420,0.12549,205.03,204.96,37.20639039]
[1736275569630,3.71007292,205.08,204.98,37.20639039]
[1736275570103,5.7368,205.09,204.99,37.20639039]
[1736275570304,5.7368,205.09,204.93,0.73157974]
[1736275570305,0.12549,205.07,204.98,23.776884]
[1736275570508,0.12549,205.05,204.98,23.776884]
[1736275570702,0.12549,205.05,204.98,60.98327439]
[1736275571220,0.12549,205.05,204.98,23.776884]
[1736275571587,0.85556292,205.05,204.91,43.21319039]
[1736275571990,0.85556292,205.05,204.89,2.98]
[1736275572200,0.85556292,205.05,204.88,1.6127]
[1736275572201,3.83556292,205.05,204.88,1.6127]
[1736275572518,5.0,204.98,204.77,1.5636]
[1736275572724,3.71007292,204.97,204.81,37.20639039]
[1736275572889,2.98,204.96,204.81,37.20639039]
[1736275573083,0.73007292,204.95,204.81,37.20639039]
[1736275573618,0.12549,204.94,204.8,37.20639039]
[1736275573823,0.12549,204.94,204.81,37.20639039]
[1736275574023,0.12549,204.94,204.77,2.29568088]
[1736275574213,0.12549,204.92,204.77,1.5636]
[1736275574404,0.12549,204.87,204.75,37.20639039]
[1736275574591,0.85556292,204.87,204.75,23.776884]
[1736275574925,0.85556292,204.87,204.75,60.98327439]
[1736275575105,0.85556292,204.87,204.75,37.20639039]
[1736275575618,0.85556292,204.87,204.76,60.98327439]
[1736275575823,0.85556292,204.87,204.75,37.20639039]
[1736275576030,0.12549,204.87,204.77,37.20639039]
[1736275576219,0.12549,204.87,204.71,2.37604691]
[1736275576220,0.12549,204.87,204.78,37.20639039]
[1736275576601,0.12549,204.87,204.8,37.20639039]
[1736275576801,0.12549,204.87,204.81,60.98327439]
[1736275577227,3.0,204.94,204.83,23.776884]
[1736275577547,0.12549,204.92,204.83,23.776884]
[1736275577698,0.12549,204.92,204.72,14.7]
[1736275577699,0.12549,204.88,204.71,1.6437]
[1736275577902,0.85556292,204.88,204.71,1.6437]
[1736275579436,0.85556292,204.88,204.73,37.20639039]
[1736275579607,0.85556292,204.88,204.74,37.20639039]
[1736275580212,0.85556292,204.88,204.75,23.776884]
[1736275580805,0.73007292,204.88,204.86,136.3]
[1736275581033,0.73007292,204.88,204.85,14.7]
[1736275581034,7.44053964,204.98,204.87,37.20639039]
[1736275581331,7.44053964,205.01,204.94,37.20639039]
[1736275581643,5.7368,205.08,204.97,60.98327439]
[1736275581821,0.73007292,205.07,204.97,60.98327439]
[1736275582523,0.12549,205.06,204.99,37.20639039]
[1736275582837,0.12549,205.06,204.91,0.7315827]
[1736275582838,5.7368,205.14,205.02,37.20639039]
[1736275583138,0.12549,205.12,204.97,38.72009039]
[1736275583339,0.73007292,205.13,204.99,60.98327439]
[1736275583533,0.73007292,205.13,204.99,23.776884]
[1736275584138,0.12549,205.12,204.99,23.776884]
[1736275584626,0.12549,205.12,204.97,37.20639039]
[1736275584819,0.12549,205.12,204.94,3.0]
[1736275584820,0.12549,205.1,204.98,37.20639039]
[1736275585024,0.85556292,205.1,204.99,23.776884]
[1736275585240,0.85556292,205.1,204.99,60.98327439]
[1736275586124,0.85556292,205.1,204.99,23.776884]
[1736275586310,0.85556292,205.1,204.97,37.20639039]
[1736275586516,0.85556292,205.1,204.98,23.776884]
[1736275587165,0.85556292,205.1,204.99,23.776884]
[1736275587359,0.85556292,205.1,205.01,23.776884]
[1736275587511,0.85556292,205.1,205.01,60.98327439]
[1736275587934,0.85556292,205.1,205.02,37.20639039]
[1736275588443,0.73007292,205.13,205.04,37.20639039]
[1736275588612,0.73007292,205.16,205.05,60.98327439]
[1736275589426,0.12549,205.15,205.05,60.98327439]
[1736275589742,0.12549,205.15,205.05,23.776884]
[1736275589945,0.12549,205.16,204.99,37.20639039]
[1736275590121,0.12549,205.12,204.97,37.20639039]
[1736275590328,0.85556292,205.12,204.96,40.20639039]
[1736275590752,0.85556292,205.12,204.95,37.20639039]
[1736275591132,0.85556292,205.12,204.96,23.776884]
[1736275591736,0.85556292,205.12,204.96,37.20639039]